bitfinex-derivatives/quotes_ETHF0:USTF0_20250911
["timestamp","ask_amount","ask_price","bid_price","bid_amount"]
[1757564487776,0.4597,4409.6,4409.5,1.1588127]
[1757564491369,0.673,4409.6,4409.5,1.1588127]
[1757564491578,1.43167347,4409.6,4409.5,1.1588127]
[1757564491980,0.8834,4409.6,4409.5,1.1588127]
[1757564492377,1.43234918,4409.6,4409.5,1.1588127]
[1757564494086,1.61734918,4409.6,4409.5,0.9494127]
[1757564494282,1.43234918,4409.6,4409.5,0.9494127]
[1757564495487,1.43234918,4409.6,4409.5,1.1498127]
[1757564495786,1.43234918,4409.6,4409.5,1.15178071]
[1757564500086,1.43234918,4409.6,4409.5,0.95138071]
[1757564501993,1.61734918,4409.6,4409.5,0.95138071]
[1757564502487,1.43234918,4409.6,4409.5,0.95138071]
[1757564502992,1.61734918,4409.6,4409.5,0.95138071]
[1757564503192,1.61734918,4409.6,4409.5,0.62778071]
[1757564503487,1.61734918,4409.6,4409.5,0.31458071]
[1757564504786,1.61734918,4409.6,4409.5,0.61238071]
[1757564506493,1.61734918,4409.6,4409.5,0.31458071]
[1757564506679,5.61734918,4409.6,4409.5,0.31458071]
[1757564506883,5.61734918,4409.6,4409.5,1e-08]
[1757564507295,0.4237,4408.8,4408.7,0.4946]
[1757564507497,0.6557,4408.8,4408.7,0.4946]
[1757564507993,0.8407,4408.8,4408.7,0.2978]
[1757564508191,1.3929076,4408.8,4408.1,0.2978]
[1757564508391,0.2133,4408.2,4408.1,0.695]
[1757564508589,0.6557,4408.2,4408.1,0.695]
[1757564508990,0.4453,4408.2,4408.1,0.695]
[1757564509193,0.232,4408.2,4408.1,0.695]
[1757564509687,0.17720737,4408.6,4408.1,0.695]
[1757564509894,0.2268,4408.7,4408.6,0.3972]
[1757564510084,0.4401,4408.7,4408.6,0.3972]
[1757564510288,1.01083898,4408.7,4408.6,0.695]
[1757564510795,1.43453898,4408.7,4408.6,0.695]
[1757564511491,1.61953898,4408.7,4408.6,0.4946]
[1757564511899,1.43453898,4408.7,4408.6,0.4946]
[1757564512401,1.61953898,4408.7,4408.6,0.4946]
[1757564512598,1.43453898,4408.7,4408.6,0.4946]
[1757564516301,1.0674,4408.7,4408.6,0.2978]
[1757564516502,1.43385806,4408.7,4408.6,0.4946]
[1757564517202,0.8825,4408.7,4408.6,0.4946]
[1757564519608,1.0667,4408.7,4408.6,0.4946]
[1757564520307,2.23485751,4408.7,4408.6,0.4946]
[1757564521110,2.05065751,4408.7,4408.6,0.6946]
[1757564521607,0.8825,4408.7,4408.6,0.6946]
[1757564521808,2.05065751,4408.7,4408.6,0.6946]
[1757564522810,2.78621953,4408.7,4408.6,0.2978]
[1757564523109,0.4129,4408.6,4408.0,0.1193]
[1757564523310,0.4129,4408.6,4408.1,0.2952]
[1757564523506,0.5971,4408.5,4408.4,0.4963]
[1757564523801,0.4129,4408.5,4408.4,0.4963]
[1757564525513,0.5971,4408.5,4408.1,0.2952]
[1757564525708,0.3134,4408.1,4407.5,0.0402]
[1757564525915,1.67925751,4407.8,4407.7,0.4011]
[1757564526109,1.40015751,4407.8,4407.7,0.4011]
[1757564526308,0.232,4407.8,4407.7,0.62797]
[1757564526710,0.232,4407.8,4407.7,0.4011]
[1757564527507,0.7431,4407.8,4407.7,0.4011]
[1757564527708,0.7431,4407.8,4407.7,0.6963]
[1757564530616,0.4588,4407.8,4407.7,0.6963]
[1757564533409,1.1851,4407.8,4407.7,0.6963]
[1757564536018,1.1851,4407.8,4407.7,0.4011]
[1757564538122,1.1851,4407.8,4406.5,2.15117869]
[1757564538417,0.5111,4407.2,4407.1,0.6963]
[1757564539107,0.123,4407.5,4407.1,0.6963]
[1757564539314,0.5454,4407.4,4407.3,0.4011]
[1757564539520,0.2268,4407.8,4407.3,0.4011]
[1757564539717,0.232,4407.7,4407.6,0.4011]
[1757564539924,0.232,4407.7,4407.6,0.6963]
[1757564540825,0.5454,4407.7,4407.6,0.6963]
[1757564541024,0.7431,4407.7,4407.6,0.6963]
[1757564541914,0.232,4407.7,4407.6,0.6963]
[1757564542222,0.9583,4407.7,4407.6,0.6963]
[1757564542926,0.5454,4407.7,4407.6,0.6963]
[1757564543426,0.9583,4407.7,4407.2,0.2952]
[1757564543634,0.7263,4407.3,4407.2,0.4963]
[1757564544036,0.7263,4407.3,4407.2,0.6963]
[1757564544724,0.5111,4407.3,4407.2,0.6963]
[1757564545441,0.3134,4407.3,4407.2,0.6963]
[1757564546040,0.5111,4407.3,4407.2,0.6963]
[1757564547832,0.2944,4407.6,4407.3,0.3219]
[1757564548136,0.4935,4407.6,4407.5,0.7304]
[1757564548340,0.7255,4407.6,4407.5,0.7304]
[1757564548640,0.4935,4407.6,4407.5,0.7304]
[1757564548938,0.7255,4407.6,4407.5,0.7304]
[1757564549940,0.9296,4407.6,4407.5,0.4085]
[1757564550940,0.9296,4407.6,4407.5,0.7304]
[1757564550941,1.1564,4407.6,4407.5,0.7304]
[1757564551239,1.1564,4407.6,4407.5,0.2128]
[1757564551442,1.1564,4407.6,4407.0,0.3219]
[1757564551638,0.1991,4407.1,4407.0,0.4085]
[1757564551939,0.6976,4407.1,4407.0,0.4085]
[1757564552141,0.6976,4407.1,4407.0,0.7304]
[1757564554638,0.6976,4407.1,4407.0,0.4085]
[1757564555745,0.6976,4407.1,4407.0,0.7304]
[1757564556039,0.6976,4407.1,4407.0,0.2128]
[1757564556245,0.6976,4407.1,4407.0,0.7304]
[1757564557243,0.6976,4407.1,4407.0,0.4085]
[1757564558630,0.2944,4407.4,4407.0,0.4085]
[1757564558837,0.1991,4407.4,4407.3,0.4085]
[1757564559140,0.4935,4407.4,4407.3,0.7304]
[1757564560246,0.2944,4407.4,4407.3,0.7304]
[1757564560441,0.4935,4407.4,4407.3,0.7304]
[1757564560644,0.6976,4407.4,4407.3,0.7304]
[1757564561332,0.6976,4407.4,4406.9,0.3219]
[1757564562041,0.4032,4407.4,4406.6,0.9865158]
[1757564562346,0.2944,4407.3,4406.7,0.3219]
[1757564562545,0.6976,4407.3,4407.2,0.2128]
[1757564562738,0.6976,4407.3,4407.2,0.7304]
[1757564563845,0.4935,4407.3,4407.2,0.7304]
[1757564564046,0.2944,4407.3,4407.2,0.7304]
[1757564564446,0.5212,4407.3,4407.2,0.7304]
[1757564564648,0.7203,4407.3,4407.2,0.7304]
[1757564565944,0.2268,4407.3,4407.2,0.7304]
[1757564567247,0.5212,4407.3,4407.2,0.7304]
[1757564567443,1.21949768,4408.7,4407.2,5.2134158]
[1757564567636,0.1271,4410.5,4407.2,5.2134158]
[1757564567637,0.2944,4409.3,4408.6,1.3950158]
[1757564567833,0.1271,4410.0,4409.1,0.9865158]
[1757564568032,0.4215,4409.5,4409.4,0.9865158]
[1757564568240,0.1271,4410.0,4409.4,4.9865158]
[1757564568434,0.1271,4410.0,4409.5,1.61584636]
[1757564568634,0.1271,4410.0,4409.9,0.9865158]
[1757564570353,0.4215,4410.0,4409.9,0.9865158]
[1757564570848,0.4215,4410.0,4409.9,1.27382398]
[1757564573048,0.8247,4410.0,4409.9,0.28730818]
[1757564580654,0.8247,4410.0,4409.9,1.27382398]
[1757564580856,0.828,4410.0,4409.9,1.27382398]
[1757564581354,0.828,4410.0,4409.9,0.28730818]
[1757564581555,0.828,4410.0,4409.9,1.27382398]
[1757564581858,0.828,4410.0,4409.9,0.28730818]
[1757564585249,0.828,4410.0,4409.9,1.27382398]
[1757564586954,0.1283,4412.5,4410.5,10.20096]
[1757564587154,0.1283,4413.5,4412.4,1.9730316]
[1757564587351,0.1283,4414.0,4413.4,34.1730316]
[1757564587545,0.1283,4414.0,4413.7,2.3807716]
[1757564587745,0.3392,4415.0,4414.9,0.1548]
[1757564587945,0.1283,4415.0,4414.9,1.4273374]
[1757564588254,0.1283,4416.5,4415.6,0.1767]
[1757564588559,0.5466,4416.5,4416.4,0.4231]
[1757564588855,0.5466,4416.5,4416.4,1.51258913]
[1757564589051,0.3392,4416.5,4416.4,1.72588913]
[1757564589251,0.1283,4417.0,4416.4,0.91607333]
[1757564589454,0.5466,4417.0,4416.9,0.9865158]
[1757564589759,0.8536,4417.0,4416.9,1.30278913]
[1757564589961,0.8536,4417.0,4416.9,0.31627333]
[1757564590554,0.5179,4415.9,4415.8,32.2]
[1757564590758,0.5179,4415.9,4415.8,32.75200229]
[1757564591054,0.5179,4415.9,4415.8,32.51500229]
[1757564591655,0.5179,4415.9,4415.8,0.52480229]
[1757564592158,0.5179,4415.9,4415.8,0.73810229]
[1757564593453,0.5179,4415.9,4415.8,0.31500229]
[1757564593454,0.7253,4415.9,4415.8,0.31500229]
[1757564597663,0.7253,4415.9,4414.3,0.1767]
[1757564597664,4.95176001,4415.9,4414.3,0.1767]
[1757564597854,0.7253,4415.9,4414.0,0.236]
[1757564598059,0.2109,4414.5,4414.4,32.2]
[1757564598360,0.6462,4414.5,4414.4,32.2]
[1757564598560,0.6462,4415.0,4414.9,0.2098]
[1757564599353,0.5466,4415.0,4414.4,32.2]
[1757564599564,0.4353,4414.5,4414.4,32.2]
[1757564599760,0.1283,4415.0,4414.4,0.5998]
[1757564600062,0.307,4414.9,4414.4,0.5998]
[1757564600264,0.2265,4414.9,4414.4,0.5998]
[1757564600766,0.307,4414.8,4414.4,0.5998]
[1757564601266,0.4374,4414.9,4414.8,0.2098]
[1757564601566,0.5179,4414.9,4414.8,0.2098]
[1757564601758,0.7253,4414.9,4414.8,0.2098]
[1757564603362,0.1283,4414.5,4414.1,32.436]
[1757564603566,0.8536,4414.5,4414.4,0.2098]
[1757564603759,0.307,4414.4,4412.9,3.47486159]
[1757564603960,0.8536,4414.0,4413.9,0.2098]
[1757564604261,0.8536,4414.0,4413.9,32.4098]
[1757564604465,0.8536,4414.0,4413.9,32.2]
[1757564604764,0.8536,4414.0,4413.5,0.236]
[1757564605263,0.307,4413.9,4413.6,32.2]
[1757564605467,0.4183,4413.7,4413.6,32.2]
[1757564605668,0.7253,4413.7,4413.6,0.4231]
[1757564606257,0.7253,4413.7,4413.6,32.6231]
[1757564607659,0.7253,4413.7,4413.6,0.4231]
[1757564609671,0.7253,4413.7,4413.6,0.7162778]
[1757564609863,0.7253,4413.7,4413.6,0.5029778]
[1757564610165,0.7253,4413.7,4413.6,0.2931778]
[1757564610359,0.7253,4413.7,4413.6,0.6960778]
[1757564610667,1.21122367,4417.2,4415.0,2.3311]
[1757564610871,0.3215,4417.4,4417.1,3.47486159]
[1757564611162,1.80961946,4418.9,4417.3,0.2713]
[1757564611163,0.17,4418.9,4417.3,0.2713]
[1757564611471,0.17,4418.9,4417.2,7.41396664]
[1757564611472,0.17,4418.9,4418.0,0.2713]
[1757564611667,0.17,4418.9,4418.2,0.2713]
[1757564611871,0.1215,4419.5,4418.3,0.53628688]
[1757564612058,0.1215,4419.5,4418.2,0.2713]
[1757564612059,0.1215,4419.5,4418.4,0.29328688]
[1757564612263,0.2262,4419.4,4418.5,0.29328688]
[1757564612463,0.2262,4419.4,4418.6,0.29328688]
[1757564612671,0.2262,4419.4,4418.7,0.29328688]
[1757564612963,0.2262,4419.4,4418.8,0.29328688]
[1757564613167,0.3215,4419.3,4418.9,0.29328688]
[1757564613367,0.3215,4419.3,4419.0,0.29328688]
[1757564613565,0.3215,4419.3,4419.1,0.29328688]
[1757564613762,0.3215,4419.3,4419.2,0.29328688]
[1757564615067,4.3215,4419.3,4419.2,0.29328688]
[1757564616067,4.0,4419.3,4418.4,32.2]
[1757564616263,0.3215,4419.4,4418.5,0.31508457]
[1757564616464,0.3215,4419.4,4418.1,0.3197]
[1757564617073,0.3215,4419.4,4418.2,32.2]
[1757564617272,0.1215,4419.5,4418.2,32.2]
[1757564617468,0.3215,4419.4,4418.1,0.3197]
[1757564617968,0.1215,4419.5,4418.1,32.5197]
[1757564618166,0.3215,4419.4,4418.1,32.5197]
[1757564618372,0.1215,4419.5,4417.3,0.242]
[1757564618570,0.3215,4419.4,4417.6,0.3197]
[1757564618869,0.3215,4419.4,4417.7,32.2]
[1757564619065,0.1215,4419.5,4417.7,32.2]
[1757564619264,0.3215,4419.4,4417.6,0.3197]
[1757564621272,0.2076,4417.7,4417.6,0.7226]
[1757564621666,0.737,4417.7,4417.6,0.7226]
[1757564624476,0.737,4417.7,4417.6,0.2064]
[1757564625873,0.737,4417.7,4417.6,0.5261]
[1757564626077,0.737,4417.7,4417.1,0.3197]
[1757564626582,0.737,4417.7,4417.6,0.7226]
[1757564626773,0.4155,4417.7,4417.6,0.7226]
[1757564627174,0.737,4417.7,4417.6,0.7226]
[1757564628182,0.737,4417.7,4417.6,0.28210509]
[1757564630276,4.737,4417.7,4417.6,0.28210509]
[1757564630882,4.978,4417.7,4417.6,0.28210509]
[1757564632484,4.978,4417.7,4416.8,0.3197]
[1757564632688,0.978,4417.7,4416.9,0.28248922]
[1757564632986,0.978,4417.7,4417.0,0.28248922]
[1757564633187,0.4155,4417.2,4417.1,0.28248922]
[1757564633388,0.737,4417.2,4417.1,0.28248922]
[1757564636482,0.737,4417.2,4417.1,1.00508922]
[1757564636687,0.2076,4417.2,4417.1,1.00508922]
[1757564638090,0.7078,4417.2,4417.1,1.00508922]
[1757564639788,0.7078,4417.2,4417.1,0.68538922]
[1757564639994,0.7078,4417.2,4417.1,0.28248922]
[1757564640987,0.7078,4417.2,4417.1,0.48568922]
[1757564641178,0.7078,4417.2,4417.1,0.79768922]
[1757564641698,0.7078,4417.2,4417.1,0.99538922]
[1757564641882,0.3062,4417.6,4417.1,0.99538922]
[1757564642088,0.3062,4417.6,4417.0,0.1293]
[1757564642089,0.7017,4417.6,4417.5,0.7129]
[1757564642292,0.7017,4417.6,4417.5,0.99538922]
[1757564642495,0.2015,4417.6,4417.5,1.12468922]
[1757564643195,0.4278,4418.0,4417.9,0.7129]
[1757564643388,0.9417,4418.0,4417.9,0.99538922]
[1757564646186,32.8343,4418.2,4417.9,0.99538922]
[1757564646490,0.4405,4418.1,4418.0,1.12468922]
[1757564647490,32.8343,4418.2,4418.1,0.312]
[1757564647683,32.847,4418.2,4418.1,0.99538922]
[1757564648388,33.0485,4418.2,4418.1,0.99538922]
[1757564650694,32.8095,4418.2,4418.1,0.99538922]
[1757564650889,33.0485,4418.2,4418.1,0.99538922]
[1757564651492,33.0485,4418.2,4418.1,2.18542773]
[1757564653194,0.5325,4418.4,4418.2,0.312]
[1757564653396,0.5325,4418.4,4418.1,0.68338922]
[1757564653397,0.928,4418.4,4418.3,0.99538922]
[1757564654291,0.4278,4418.4,4418.3,0.99538922]
[1757564654992,0.2263,4418.4,4418.3,0.99538922]
[1757564655184,0.2263,4418.4,4418.3,2.20173041]
[1757564655384,0.2263,4418.4,4418.3,4.99538922]
[1757564657098,0.2263,4418.4,4418.3,6.20077154]
[1757564657394,0.2263,4418.4,4418.3,4.99538922]
[1757564659692,0.1195,4420.5,4418.5,0.0716]
[1757564659693,0.3062,4419.9,4418.5,0.0716]
[1757564659901,0.7017,4419.1,4419.0,0.4009]
[1757564660093,0.7017,4419.2,4419.1,0.7129]
[1757564660399,0.7017,4419.2,4419.1,0.99538922]
[1757564660598,0.5077,4419.2,4419.1,0.99538922]
[1757564660798,0.3062,4419.2,4419.1,0.99538922]
[1757564661100,0.3062,4419.4,4419.1,0.68338922]
[1757564661302,0.2015,4419.3,4419.2,0.99538922]
[1757564661502,0.5077,4419.3,4419.2,0.99538922]
[1757564662197,0.003,4419.6,4419.2,0.99538922]
[1757564662504,0.5107,4419.6,4419.5,0.7129]
[1757564662694,0.7017,4419.6,4419.5,0.99538922]
[1757564664404,0.3062,4419.8,4419.5,0.68338922]
[1757564664703,0.5077,4419.8,4419.7,0.7129]
[1757564664905,0.5077,4419.8,4419.7,0.99538922]
[1757564665403,0.5077,4419.8,4419.7,0.7129]
[1757564666798,0.2015,4419.8,4419.7,0.7129]
[1757564667005,0.5077,4419.8,4419.7,0.994573]
[1757564667794,0.5077,4419.8,4419.7,2.15636113]
[1757564668004,0.3212,4419.9,4419.7,1.84436113]
[1757564668200,0.535,4419.9,4419.8,1.003473]
[1757564668705,0.2972,4421.4,4420.2,0.3142]
[1757564668902,0.511,4420.4,4420.3,1.003473]
[1757564670302,0.511,4420.4,4419.6,32.8192]
[1757564670303,0.7159,4419.7,4419.6,0.6192]
[1757564670697,0.7159,4419.7,4419.6,0.8178]
[1757564672311,0.7159,4419.7,4419.6,1.0268]
[1757564672612,0.7159,4419.7,4419.6,1.341]
[1757564674312,0.7159,4419.7,4419.6,1.0268]
[1757564677111,0.7159,4419.7,4419.6,0.6192]
[1757564677815,0.7159,4419.7,4419.6,0.8178]
[1757564678615,0.7159,4419.7,4419.6,1.341]
[1757564679910,0.511,4419.8,4419.7,0.7218]
[1757564680105,0.7159,4419.8,4419.7,0.7218]
[1757564680705,0.7159,4419.8,4419.7,0.4076]
[1757564680907,0.7159,4419.8,4419.7,0.1986]
[1757564682513,0.7159,4419.8,4419.7,0.47707527]
[1757564682710,0.511,4420.0,4419.9,0.7218]
[1757564682914,0.128,4420.5,4420.0,0.3142]
[1757564683218,0.7159,4420.4,4420.3,0.7218]
[1757564683516,0.7159,4420.4,4420.3,0.68607527]
[1757564683704,0.7159,4420.4,4420.3,0.27847527]
[1757564687013,0.7159,4420.4,4420.3,0.47707527]
[1757564688619,0.7159,4420.4,4420.3,0.27847527]
[1757564689515,0.7159,4420.4,4420.3,0.27592819]
[1757564692113,4.7159,4420.4,4420.3,2.819e-05]
[1757564692423,4.7159,4420.4,4420.2,0.6183]
[1757564692622,0.7159,4420.3,4420.2,0.6183]
[1757564695629,4.9519,4420.3,4420.2,1e-08]
[1757564695922,4.9519,4420.3,4418.5,0.0716]
[1757564695923,0.5467,4419.0,4418.8,0.3142]
[1757564696128,0.7159,4418.9,4418.8,0.5128]
[1757564696331,0.7159,4418.9,4418.8,0.7218]
[1757564696524,0.4187,4418.9,4418.8,0.7218]
[1757564696825,0.7159,4418.9,4418.8,0.7218]
[1757564699027,0.4187,4418.9,4418.8,0.7218]
[1757564699427,0.7376,4418.9,4418.8,0.7218]
[1757564699933,0.7376,4418.9,4418.8,0.1986]
[1757564700527,0.7376,4418.9,4418.8,0.5085]
[1757564701024,0.7308,4418.9,4418.8,0.715]
[1757564701720,0.7308,4418.9,4418.8,0.5085]
[1757564701923,0.7308,4418.9,4418.5,0.3099]
[1757564702122,0.7308,4418.9,4418.0,0.1221]
[1757564702123,0.4119,4418.6,4418.0,0.1221]
[1757564702321,0.2075,4418.1,4418.0,1.82830946]
[1757564702826,0.3189,4418.4,4418.1,0.3099]
[1757564703021,0.5264,4418.4,4418.3,0.7251]
[1757564704122,0.7308,4418.4,4418.3,0.7251]
[1757564706522,0.7308,4418.4,4418.0,0.432]
[1757564706722,0.4119,4418.4,4418.0,0.1221]
[1757564706925,0.4119,4418.4,4418.3,0.2087]
[1757564707124,0.4119,4418.4,4418.3,0.5186]
[1757564707327,0.59184049,4418.4,4418.3,0.5186]
[1757564707523,0.91074049,4418.4,4418.3,0.5186]
[1757564707928,0.7308,4418.4,4418.3,0.5186]
[1757564709330,0.7308,4418.4,4418.3,0.7251]
[1757564710523,0.7308,4418.4,4418.1,0.3099]
[1757564710824,0.3189,4418.3,4417.9,0.3099]
[1757564711031,0.7308,4418.2,4418.1,0.7251]
[1757564714032,0.2075,4418.2,4418.1,0.7251]
[1757564714626,0.4425,4418.6,4418.5,0.8524]
[1757564715330,0.9658,4418.6,4418.5,0.8524]
[1757564718528,0.4119,4418.6,4418.5,0.8524]
[1757564718831,0.2075,4418.6,4418.5,0.8524]
[1757564719020,0.5264,4418.6,4418.5,0.8524]
[1757564719419,0.7308,4418.6,4418.5,0.8524]
[1757564721628,0.4119,4418.6,4418.5,0.8524]
[1757564722837,0.7308,4418.6,4418.5,0.8524]
[1757564725131,0.234,4418.7,4418.0,0.5425]
[1757564725132,0.4119,4418.1,4418.0,0.5425]
[1757564725338,0.7308,4418.1,4418.0,0.5425]
[1757564725636,0.7308,4418.1,4418.0,0.8524]
[1757564728838,0.4119,4418.1,4418.0,1.83350946]
[1757564729136,0.4119,4418.1,4418.0,3.43899404]
[1757564730436,0.7062,4418.1,4418.0,3.43899404]
[1757564732136,0.9444,4418.7,4418.6,0.1946]
[1757564732340,1.17073,4418.7,4418.6,0.491]
[1757564732525,0.9434,4418.7,4418.6,0.491]
[1757564732731,0.7104,4418.7,4418.6,0.7]
[1757564733034,0.5053,4418.2,4418.1,0.491]
[1757564733232,0.5053,4418.2,4418.1,0.7]
[1757564733640,0.7104,4418.2,4418.1,0.7]
[1757564736339,0.7104,4418.2,4418.1,0.491]
[1757564736645,0.2943,4417.6,4417.5,1.60548458]
[1757564736830,0.7104,4417.6,4417.5,0.491]
[1757564737036,0.7104,4417.6,4417.5,0.8218]
[1757564737542,0.7104,4418.2,4418.1,0.7]
[1757564737841,1.47412424,4418.2,4418.1,0.7]
[1757564738031,1.24112424,4418.2,4418.1,0.7]
[1757564738232,0.211,4417.7,4417.6,1.17570946]
[1757564738432,0.7104,4417.7,4417.6,0.4036]
[1757564738936,0.7104,4417.7,4417.6,0.7]
[1757564739938,0.7104,4417.7,4417.6,0.1946]
[1757564740142,0.7104,4417.7,4417.6,0.7]
[1757564740533,0.7104,4417.7,4417.6,0.491]
[1757564740730,0.4161,4417.7,4417.3,0.2964]
[1757564740942,0.7104,4417.4,4417.3,0.491]
[1757564741444,0.7104,4417.4,4417.3,0.7]
[1757564743942,0.7104,4417.4,4417.3,0.97364215]
[1757564746241,0.7104,4417.4,4417.3,1.28060111]
[1757564748044,0.7104,4417.4,4417.3,0.77520111]
[1757564748242,0.7104,4417.4,4417.3,0.87700111]
[1757564748542,0.7104,4417.4,4417.3,1.07160111]
[1757564748744,0.7104,4417.4,4417.3,1.28060111]
[1757564750346,0.7104,4417.4,4417.3,1.07160111]
[1757564750649,0.2943,4417.7,4417.5,0.1218]
[1757564750946,0.7104,4417.7,4417.6,1.28060111]
[1757564751946,0.7104,4417.7,4417.6,0.58060111]
[1757564752835,0.7104,4417.7,4417.6,1.07160111]
[1757564753747,0.7104,4417.7,4417.6,1.28060111]
[1757564758150,0.89005092,4417.7,4417.6,1.28060111]
[1757564760954,0.7104,4417.7,4417.6,1.28060111]
[1757564761253,0.233,4417.7,4417.6,1.28060111]
[1757564761452,0.434,4417.7,4417.6,1.28060111]
[1757564761653,0.9486,4417.7,4417.6,1.28060111]
[1757564762247,0.9486,4417.7,4417.6,1.28060449]
[1757564766047,0.9486,4417.7,4417.6,1.00695896]
[1757564766247,0.9486,4417.7,4417.6,1.28096862]
[1757564766448,1.48919274,4417.7,4417.6,1.28096862]
[1757564768652,0.77359274,4417.7,4417.6,1.28096862]
[1757564769257,0.54059274,4417.7,4417.6,1.28096862]
[1757564769457,0.77359274,4417.7,4417.6,1.28096862]
[1757564771658,0.233,4417.7,4417.6,1.28096862]
[1757564772159,0.9486,4417.7,4417.6,1.28096862]
[1757564772361,1.48940342,4417.7,4417.6,1.28096862]
[1757564772756,1.18510342,4417.7,4417.6,1.28096862]
[1757564772960,0.97480342,4417.7,4417.6,1.28096862]
[1757564773156,0.233,4417.8,4417.7,0.2951]
[1757564773464,0.233,4417.8,4417.7,1.51411862]
[1757564773662,0.233,4417.8,4417.7,1.28776862]
[1757564777964,0.233,4417.8,4417.7,1.29146005]
[1757564779268,0.434,4417.8,4417.7,1.29146005]
[1757564779470,0.233,4417.8,4417.7,1.29146005]
[1757564781864,0.233,4417.8,4417.7,1.01709965]
[1757564782071,0.233,4417.8,4417.7,1.29145463]
[1757564786473,32.606,4418.4,4417.7,0.99635463]
[1757564786674,32.807,4418.4,4418.3,0.7068]
[1757564786867,33.58567444,4418.4,4418.3,1.29145463]
[1757564787775,33.89867444,4418.4,4418.3,1.29145463]
[1757564788277,33.353,4418.4,4418.3,1.29145463]
[1757564789271,0.9559,4418.4,4418.3,1.29145463]
[1757564792371,0.201,4418.4,4418.3,1.29145463]
[1757564792579,0.434,4418.4,4418.3,1.29145463]
[1757564792979,0.233,4418.4,4418.3,1.29145463]
[1757564793677,0.18109999,4418.9,4418.3,0.99635463]
[1757564793880,35.714,4420.8,4418.7,0.7144]
[1757564793881,1.26253685,4418.8,4418.7,0.7144]
[1757564794181,0.9502,4418.8,4418.7,1.29905463]
[1757564795776,32.607,4419.3,4418.7,1.29905463]
[1757564796085,32.607,4419.3,4418.5,0.118]
[1757564796086,32.607,4419.3,4419.2,0.7144]
[1757564796379,32.84,4419.3,4419.2,1.29905463]
[1757564796978,33.0353,4419.3,4419.2,1.29905463]
[1757564797174,33.3483,4419.3,4419.2,1.29905463]
[1757564797380,33.5572,4419.3,4419.2,1.29905463]
[1757564802193,33.1153,4419.3,4419.2,1.29905463]
[1757564802387,33.5572,4419.3,4419.2,1.29905463]
[1757564803793,33.5572,4419.3,4419.2,0.58465463]
[1757564803992,33.5572,4419.3,4419.2,0.31029553]
[1757564804293,33.5572,4419.3,4419.2,1.02469553]
[1757564804294,0.1953,4419.3,4419.2,1.02469553]
[1757564804596,0.1953,4419.7,4419.6,0.2975]
[1757564804794,0.1953,4419.7,4419.6,0.81469553]
[1757564804795,0.5272,4419.7,4419.6,0.81469553]
[1757564804999,0.8402,4419.7,4419.6,0.81469553]
[1757564805298,0.8402,4419.7,4419.6,1.02469553]
[1757564806400,0.8402,4419.7,4419.6,0.31029553]
[1757564809205,0.7172,4419.7,4419.6,0.31029553]
[1757564809404,1.93144419,4419.7,4419.6,0.31029553]
[1757564815208,1.93144419,4419.7,4419.6,0.81469553]
[1757564816411,0.9502,4419.7,4419.6,0.81469553]
[1757564820314,0.7172,4419.7,4419.6,1.02379553]
[1757564820503,0.6372,4419.7,4419.6,1.02379553]
[1757564820708,0.9531,4419.7,4419.6,1.02379553]
[1757564820914,1.16596356,4420.3,4419.6,1.02379553]
[1757564821212,0.7368,4420.1,4420.0,0.8291]
[1757564821411,0.7368,4420.1,4420.0,1.13939553]
[1757564821603,0.9698,4420.1,4420.0,1.13939553]
[1757564822714,0.233,4420.1,4420.0,1.13939553]
[1757564823510,0.7638,4420.1,4420.0,1.13939553]
[1757564823712,0.4479,4420.1,4420.0,1.13939553]
[1757564824219,0.4479,4420.1,4420.0,1.13670086]
[1757564824518,1.51204419,4420.6,4420.5,0.8291]
[1757564824716,2.49585976,4420.6,4420.5,1.01470086]
[1757564827418,2.26285976,4420.6,4420.5,1.01470086]
[1757564827620,2.49585976,4420.6,4420.5,1.01470086]
[1757564829425,1.51461557,4420.6,4420.5,1.01470086]
[1757564834127,1.28161557,4420.6,4420.5,1.01470086]
[1757564834424,1.51461557,4420.6,4420.5,1.01470086]
[1757564835025,1.28161557,4420.6,4420.5,1.01470086]
[1757564835223,1.51461557,4420.6,4420.5,1.01470086]
[1757564835423,2.49585976,4420.6,4420.5,1.01470086]
[1757564836233,2.49585976,4420.6,4420.5,0.7071]
[1757564838826,2.26285976,4420.6,4420.5,0.7071]
[1757564839027,2.49585976,4420.6,4420.5,0.7071]
[1757564841222,2.26285976,4420.6,4420.5,0.7071]
[1757564841522,2.49585976,4420.6,4420.5,0.7071]
[1757564842623,2.49522092,4420.6,4420.5,0.7071]
[1757564843020,1.28097673,4420.6,4420.5,0.7071]
[1757564843325,0.9698,4420.6,4420.5,0.8291]
[1757564844224,0.9698,4420.6,4420.5,0.7071]
[1757564844414,0.9698,4420.6,4420.5,0.8291]
[1757564845025,0.9698,4420.6,4420.5,0.7071]
[1757564847122,0.9698,4420.6,4420.0,0.122]
[1757564847423,0.4895,4420.5,4420.4,0.4075]
[1757564847628,0.1959,4420.5,4420.4,0.7307]
[1757564848528,0.2936,4420.8,4420.5,0.1185]
[1757564848715,0.4895,4420.8,4420.7,0.7307]
[1757564848919,1.47008336,4420.8,4420.7,0.7307]
[1757564849826,1.47008336,4420.8,4420.7,0.5176]
[1757564850631,1.47008336,4420.8,4420.7,0.7307]
[1757564852023,1.17648336,4420.8,4420.2,0.3232]
[1757564852326,0.2936,4420.6,4420.5,0.1944]
[1757564852522,1.23708336,4420.6,4420.5,0.7307]
[1757564852721,1.47008336,4420.6,4420.5,0.8492]
[1757564852924,0.233,4420.6,4420.5,1.83044419]
[1757564853923,0.4289,4420.6,4420.5,0.8492]